Cogmind - Beta 13 @@@ ROGUE MODE // 2024.05.22 @ 15:17:35 Player: ROOK Result: Destroyed by D-53 Grenadier with Mini Grenade Launcher Performance ------------- Evolutions (0) 0 Regions Visited (2) 400 Robots Destroyed (23) 115 Value Destroyed (429) 429 Prototype IDs (0) 0 Alien Tech Used (0) 0 Bonus (0) 0 TOTAL SCORE: 944 Bonus ------- None Cogmind --------- Core Integrity 0/250 Matter 300/300 Energy 100/100 System Corruption 0% Temperature Cool (0) Movement Walking (260) Ox2 Location -10/Mines Parts ------- > --- POWER (1) -------- (None) > --- PROPULSION (2) --- Aluminum Leg > --- UTILITY (2) ------ Large Storage Unit Improved Terrain Scanner > --- WEAPON (2) ------- Assault Rifle > --- INVENTORY (15) --- Ion Engine Aluminum Leg Heat Sink High-capacity Matter Pod (200) Sensor Array Signal Interpreter Targeting Computer Core Shielding Small Laser Small Laser Assault Rifle Assault Rifle Mining Laser Peak State ------------ > --- POWER ------------ Light Nuclear Core > --- PROPULSION ------- Aluminum Leg Aluminum Leg > --- UTILITY ---------- Large Storage Unit Improved Terrain Scanner > --- WEAPON ----------- Assault Rifle Assault Rifle > --- INVENTORY -------- Ion Engine High-capacity Matter Pod Sensor Array Signal Interpreter Targeting Computer Core Shielding Small Laser Small Laser Assault Rifle Assault Rifle Mining Laser [Rating: 12] Favorites ----------- Power Ion Engine Engine Ion Engine Power Core Light Nuclear Core Propulsion Light Treads Treads Light Treads Leg Aluminum Leg Utility Improved Terrain Scanner Device Improved Terrain Scanner Storage Large Storage Unit Weapon Assault Rifle Energy Gun Particle Gun Ballistic Gun Assault Rifle Special Weapon Mining Laser Build | -11 -10 -10 ------- Run | Yrd Mat Min Slots Evolved . | . . . Power . | . . . Propulsion . | . . . Utility . | . . . Weapon . | . . . Parts Attached 19 | 9 8 2 Power 3 | 1 1 1 Engine 2 | 1 1 . Core 1 | . . 1 Reactor . | . . . Propulsion 5 | 2 2 1 Treads 2 | 2 . . Leg 3 | . 2 1 Wheel . | . . . Hover . | . . . Flight . | . . . Utility 3 | 2 1 . Device 1 | 1 . . Storage 2 | 1 1 . Processor . | . . . Hackware . | . . . Protection . | . . . Artifact . | . . . Weapon 8 | 4 4 . Energy Gun 3 | 2 1 . Energy Cannon . | . . . Ballistic Gun 4 | 1 3 . Ballistic Cannon . | . . . Launcher . | . . . Special Weapon 1 | 1 . . Impact Weapon . | . . . Slashing Weapon . | . . . Piercing Weapon . | . . . Special Melee Weapon . | . . . Unidentified Prototypes . | . . . Parts Lost 6 | . 1 5 Power 2 | . . 2 Propulsion 2 | . . 2 Utility . | . . . Weapon 2 | . 1 1 Highest Loss Streak 3 | . 1 3 To Critical Strikes . | . . . Average Slot Usage (%) 93 | . 96 88 Engine 12 | . 14 10 Treads 10 | . 16 . Leg 13 | . 11 17 Device 14 | . 14 14 Storage 14 | . 14 14 Energy Gun 4 | . 6 . Ballistic Gun 21 | . 18 28 Naked Turns . | . . . Heaviest Build 30 | 14 30 30 Greatest Support 40 | 40 40 20 Greatest Overweight (x) 2 | . 1 2 Average Overweight (x) . | . . 1 Largest Inventory Capacity 15 | 8 15 15 Average Capacity 13 | 7 14 15 Most Carried 15 | 8 15 13 Average Carried 10 | 3 12 11 Final Capacity 15 | 8 15 15 Final Carried 13 | 8 12 13 Class Distribution -------------------- 100% | Mutant Dominant Class ---------------- Mutant | -10/Materials Mutant | -10/Mines Resources | -11 -10 -10 ----------- Run | Yrd Mat Min Matter Collected 796 | 316 378 102 Remotely . | . . . Salvage Created 614 | 92 421 101 Parts 52 | 9 40 3 Haulers Intercepted . | . . . Recyclers Shooed 5 | 5 . . Parts Field Recycled . | . . . Retrieved Matter . | . . . Parts Self-Destructed . | . . . Prevented . | . . . Kills | -11 -10 -10 ------- Run | Yrd Mat Min Combat Hostiles Destroyed 16 | . 12 4 Guns 16 | . 12 4 Classes Destroyed 5 | 2 3 . Tunneler 3 | 3 . . Recycler 2 | 1 1 . Watcher 2 | . 2 . Swarmer 9 | . 6 3 Grunt 7 | . 6 1 Best Kill Streak 5 | 2 5 3 Combat Bots Only 4 | . 4 3 Max Kills in Single Turn 2 | 1 2 1 Gunslinging 1 | . 1 . Exploded . | . . . Melee . | . . . Uniques/NPCs Destroyed . | . . . Combat | -11 -10 -10 -------- Run | Yrd Mat Min Hostile Shots Fired 134 | . 84 50 Missed 29 | . 19 10 Damage Taken 1226 | . 650 576 Core 253 | . 125 128 Absorbed by Shields . | . . . Core Remaining (%) 100 | 100 . . Volleys Fired 73 | 20 41 12 Largest 2 | 2 2 2 Hottest 120 | 120 85 40 Shots Fired 129 | 25 80 24 Gun 124 | 20 80 24 Cannon . | . . . Launcher . | . . . Special 5 | 5 . . Kinetic 101 | 12 65 24 Thermal 28 | 13 15 . Explosive . | . . . Electromagnetic . | . . . Robot Hit Streak 7 | 6 7 4 Robot Miss Streak 7 | 3 6 7 Penetration Max . | . . . Secondary Targets 9 | . 8 1 Max Gunslinging Chain 1 | . 1 1 Shots Hit Robots 69 | 15 44 10 Core Hits 35 | 4 25 6 Critical Kills . | . . . Critical Parts Destroyed . | . . . Critical Strikes 1 | . 1 . Burn 1 | . 1 . Melee Attacks . | . . . Impact . | . . . Slashing . | . . . Piercing . | . . . Sneak Attacks . | . . . Combat Hostiles . | . . . Follow-up Attacks . | . . . Damage Inflicted 936 | 212 548 176 Guns 884 | 164 544 176 Cannons . | . . . Explosions . | . . . Melee . | . . . Ramming 4 | . 4 . Kinetic 652 | 85 391 176 Thermal 280 | 127 153 . Explosive . | . . . Electromagnetic . | . . . Impact . | . . . Slashing . | . . . Piercing . | . . . Highest Corruption . | . . . Average Corruption . | . . . Corruption Purged . | . . . Corruption Blocked . | . . . Overload Shots . | . . . Overflow Damage 7 | 7 . . Projectiles 7 | 7 . . Explosions . | . . . Melee . | . . . Knockbacks . | . . . Impact . | . . . Kinetic . | . . . Secondary . | . . . Self-Inflicted Damage . | . . . Shots . | . . . Rammed . | . . . Targets Rammed 1 | . 1 . Kicked 1 | . 1 . Crushed . | . . . Highest Temperature 328 | 41 328 . Average Temperature 77 | 22 94 . Received Heat Transfer 264 | . 210 54 Siege Activations . | . . . Robots Corrupted . | . . . Combat Hostiles . | . . . Parts Fried . | . . . Impact Corruptions . | . . . Robots Melted . | . . . Combat Hostiles . | . . . Parts Melted . | . . . Heat Transferred 719 | 275 444 . Parts Sabotaged . | . . . Parts Stolen . | . . . Parts Stripped . | . . . Power Chain Reactions . | . . . Alert | -11 -10 -10 ------- Run | Yrd Mat Min Peak Influence 276 | 20 276 206 Initial 91 | . 13 91 Average 128 | 12 148 171 Maximum Alert Level 1 | . 1 1 Low Security (%) 69 | 100 55 76 Level 1 30 | . 44 23 Level 2 . | . . . Level 3 . | . . . Level 4 . | . . . Level 5 . | . . . High Security . | . . . Max Security . | . . . Squads Dispatched 3 | . 3 . Investigation 3 | . 3 . Extermination . | . . . Reinforcement . | . . . Assault . | . . . Garrison . | . . . Intercept . | . . . Searches Triggered . | . . . Construction Impeded . | . . . Haulers Reinforced . | . . . Active Scanning Responses . | . . . Cargo Convoy Interrupts . | . . . Stealth | -11 -10 -10 --------- Run | Yrd Mat Min Distress Signals 2 | . 2 . Communications Jammed . | . . . Distress Signals . | . . . Times Spotted 26 | . 20 6 Peak Tracking Total 6 | . 6 3 Tactical Retreats 1 | . 1 . Traps | -11 -10 -10 ------- Run | Yrd Mat Min Traps Triggered . | . . . Indirectly . | . . . Trap Hack Attempts . | . . . Triggered . | . . . Disarmed . | . . . Reprogrammed . | . . . Reused . | . . . Traps Extracted . | . . . Installed . | . . . Triggered . | . . . Machines | -11 -10 -10 ---------- Run | Yrd Mat Min Machines Disabled 1 | . 1 . Max in Single Turn 1 | . 1 . Machines Repaired . | . . . Machines Dismantled . | . . . Machines Sabotaged . | . . . Overloaded Fab Kills . | . . . Hacking | -11 -10 -10 --------- Run | Yrd Mat Min Machines Accessed 5 | . 5 . Terminals 3 | . 3 . Fabricators . | . . . Repair Stations . | . . . Recycling Units 2 | . 2 . Scanalyzers . | . . . Garrison Access . | . . . Total Hacks 19 | . 19 . Successful 9 | . 9 . Failed 10 | . 10 . Catastrophic 2 | . 2 . Database Lockouts . | . . . Manual . | . . . Terminals 11 | . 11 . Fabricators . | . . . Repair Stations . | . . . Recycling Units 8 | . 8 . Scanalyzers . | . . . Garrison Access . | . . . Terminal Hacks 4 | . 4 . Locate Traps 1 | . 1 . Dispatch Records 2 | . 2 . Zone Layout 1 | . 1 . Fabricator Hacks . | . . . Repair Station Hacks . | . . . Recycling Unit Hacks 5 | . 5 . Recycle Component 2 | . 2 . Process 1 | . 1 . Report Inventory 2 | . 2 . Scanalyzer . | . . . Garrison Access Hacks . | . . . Unauthorized Hacks . | . . . Terminals . | . . . Fabricators . | . . . Repair Stations . | . . . Recycling Units . | . . . Scanalyzers . | . . . Garrison Access . | . . . Data Cores Recovered . | . . . Used . | . . . Hacking Detections 5 | . 5 . Full Trace Events 3 | . 3 . Feedback Events . | . . . Feedback Blocked . | . . . Robot Schematics Acquired . | . . . Robots Built . | . . . Authchips . | . . . Time . | . . . Total Robot Build Rating . | . . . Part Schematics Acquired . | . . . Parts Built . | . . . Authchips . | . . . Time . | . . . Total Part Build Rating . | . . . Parts Repaired . | . . . Time . | . . . Parts Recycled 2 | . 2 . Recycled Matter 10 | . 10 . Retrieved Matter . | . . . Retrieved Components . | . . . Parts Scanalyzed . | . . . Part Schematics Acquired . | . . . Parts Damaged . | . . . Bothacking | -11 -10 -10 ------------ Run | Yrd Mat Min Used RIF Installer . | . . . Robots Hacked . | . . . Non-combat . | . . . Combat . | . . . Robot Hacks Applied . | . . . Relay Couplers Released . | . . . Fabnet Peak Effective % . | . . . Robots Rewired . | . . . Allies Hacked . | . . . Hacks Repelled . | . . . Allies | -11 -10 -10 -------- Run | Yrd Mat Min Total Allies . | . . . Largest Group . | . . . Highest-Rated Group . | . . . Highest-Rated Ally . | . . . Total Orders . | . . . Ally Attacks . | . . . Total Damage . | . . . Kills . | . . . Allies Corrupted . | . . . Allies Melted . | . . . Intel | -11 -10 -10 ------- Run | Yrd Mat Min Robot Analysis Total . | . . . Derelict Logs Recovered 2 | . . 2 Drone Launches . | . . . Drone Recoveries . | . . . Exploration | -11 -10 -10 ------------- Run | Yrd Mat Min Turns Passed 1404 | 270 764 370 Spaces Moved 612 | 125 350 137 Core 8 | 8 . . Treads 332 | 117 215 . Legs 272 | . 135 137 Wheels . | . . . Hover . | . . . Flight . | . . . Fastest Speed 50 | 50 160 190 Average Speed 183 | 152 171 240 Slowest Speed 260 | 160 190 260 Overloaded Moves . | . . . Propulsion Burnouts . | . . . Robots Hopped . | . . . Cave-ins Triggered . | . . . Exploration Rate (%) 27 | 6 42 35 Regions Visited 2 Branch Regions 1 Pre-discovered Areas 1 | . . 1 Known Exits Taken . | . . . Unknown Exits Taken 2 | 1 1 . Scrap Searched . | . . . Spaces Dug . | . . . Terrain Destroyed 1 | 1 . . Melee . | . . . Projectile 1 | 1 . . AOE . | . . . Terrain Rammed . | . . . Walls Destroyed . | . . . Machines Disabled . | . . . Actions | -11 -10 -10 --------- Run | Yrd Mat Min Total 769 | 168 446 155 Wait 17 | . 16 1 Move 610 | 124 349 137 Hop . | . . . Pick Up 35 | 14 18 3 Fast Attach 2 | 2 . . Attach 10 | 6 2 2 Detach . | . . . Swap 7 | 1 6 . Drop 14 | 1 13 . Fire 73 | 20 41 12 Melee . | . . . Ram . | . . . Kick 1 | . 1 . Crush . | . . . Escape Stasis . | . . . Rewire . | . . . Trap . | . . . Miscellaneous . | . . . Route ------- -11/Scrapyard -10/Materials -10/Mines History --------- Turn | Location | Event 5 | -11/Scrapyard | Discovered new exit (range 16) 271 | -11/Scrapyard | Entered Materials 327 | -10/Materials | Build established: Mutant 955 | -10/Materials | Discovered new exit (range 16) 1035 | -10/Materials | Entered Mines 1040 | -10/Mines | Core integrity fell below 50% 1068 | -10/Mines | Assembled infested the area 1223 | -10/Mines | Learned location of Zion (-7) 1364 | -10/Mines | Learned 2 Materials zone layouts 1405 | -10/Mines | Destroyed by D-53 Grenadier with Mini Grenade Launcher Last Messages --------------- Acquired 12 matter. Acquired derelict log, extracted data. World map updated: -7/Zion. Ion Engine destroyed. G-47 Trooper destroyed. K-01 Serf collects debris. Acquired Lgt. Nuclear Core. K-01 Serf collects debris. Acquired 50 matter. K-01 Serf collects debris. Acquired derelict log, extracted data. Data stored: Materials zone layouts (x2). Acquired Aluminum Leg. Acquired 1 matter. Acquired Heat Sink. Lgt. Nuclear Core destroyed. U-05 Engineer lays Concrete. Aluminum Leg destroyed. Assault Rifle destroyed. U-05 Engineer lays Concrete. Map ----- +----------------------------------------------------+ | | | | | | | | | ?????????????????????????????????????????????????? | | ?????????????????????????????????????????????????? | | ?????????????????????????????????????????????????? | | ?????????????????????????????????????????????????? | | ?????????????????????????????????????????????????? | | ?????????????????????????????????????????????????? | | ?????????????????????????????????????????????????? | | ?????????????????????????????????????????????????? | | ?????????????????????????????????????????????????? | | ?????????????????????????????????????????????????? | | ????????????????????????????????#????????????????? | | ??????#????????#????????#????????????????????????? | | ?????????????????????????????????????????????????? | | ???????????????? ?????#??????????????????????????? | | ?????#??????????? ???????????????????????????????? | | ?????????###????? ??????????????????????????????? | | ????#?#?? ?????"""?????????????????????????????? | | ??????? ?# #?#???""" ?######???#???#?????????????? | | ?????????# #???????" ## # ### ####??????????????? | | ?????????# #???????## u #??????????????? | | ?????????# #??????## #??????????????? | | ?????????# #????### @ #?#?????????????????? | | ?????????# ######% % ##???????????????????? | | ????????## = % #??????????????????? | | ???#?#???# ##### d #??????????????????? | | ???# ##### ##??## ### ##??????????????????? | | ???# #???####?## ##???????????????????? | | ???###### #???#?????## d###????????????????????? | | ????????# #???#??????# #??????????????????????? | | ????#???# #??????????# #??????????????????????? | | #?#?#??## #????#?????# ??????????????????????? | | ??????## #????#??#??# #??????#???????????????? | | ?????### ##?????????# #??????#???????????????? | | ?????## #?#???????# #??#???????????????????? | | ????## #?????????# #??????????????????????? | | #??## """ #?????????? ???????????????????????? | | ###?# """ #??#??????? ???????????????????????? | | #### """ #????#????? ???????????????????????? | | ## ###?#????#??????????????????????????? | | ##????????????????????????????????? | | ## #?????????????????????????????????? | | ##?### ###???????????????????????????????? | | ## #????# #?????????????????????????????????? | | ### #?#???#?????????????????????????????????? | | ??## ###??????????????????????????????????????? | | ??#########????##????????????????????????????????? | +----------------------------------------------------+ Best States ------------- Heat Dissipation 25 Energy Generation 14 Energy Capacity 250 Matter Stores 300 Matter Capacity 300 Sight Range 16 Terrain Scan Range 16 Terrain Scan Density 10 Evasion (%) 40 Recoil Reduction 2 Item Schematics ----------------- None Robot Schematics ------------------ None Fabricated ------------ Nothing Alien Tech Used ----------------- None Achievements -------------- Hey, That's Mine! Challenges ------------ None Game ------ Seed BehemothSpliceRedistributor Manual? 0 Play Time 00:15:33 Cumulative 2.9 hours Start 2024.05.22 @ 15:03:40 End 2024.05.22 @ 15:17:35 Sessions 1 Manual Loads 0 Difficulty Rogue Special Mode None Game No. 5 Rogue 5 Adventurer 0 Explorer 0 Win Type - Total 0 Types 0/0/0/0/0/0/0/0/0 Lore% 1 Gallery% 6 Achievement% 5 Wizard Run 0 Options --------- Layout 0 ASCII 0 Keyboard 0 Movement Arrows Keybinds 0 Fullscreen 1 Font 24/Smallcaps Map View 38x25 Zoom Use 100% Tactical HUD 0 Map Filters NONE Filters NONE Steam 1 RUN: 644fbdab-9ecd-49a8-95bc-3a14d9d71526